Cogmind - Beta 16 @@@ ROGUE MODE // 2025.10.30 @ 08:08:23 Player: shapeshifter Result: Destroyed by 3K-DOV(R) with Subdweller Machine Gun Performance ------------- Evolutions (0) 0 Regions Visited (3) 600 Robots Destroyed (16) 80 Value Destroyed (383) 383 Prototype IDs (12) 240 Alien Tech Used (0) 0 Bonus (0) 0 TOTAL SCORE: 1303 Bonus ------- None Cogmind --------- Core Integrity 0/250 Matter 150/300 Energy 200/200 System Corruption 1% Temperature Cool (0) Movement Treading (160) Location -10/Subcaves Parts ------- > --- POWER (1) -------- Subdweller Power Source > --- PROPULSION (2) --- Light Treads > --- UTILITY (2) ------ Small Storage Unit > --- WEAPON (2) ------- Subdweller Machine Gun Barrage Gun > --- INVENTORY (8) ---- Subdweller Monowheel Subdweller Monowheel Subdweller Monowheel Targeting Computer Makeshift Light Armor Plating Grenade Launcher Peak State ------------ > --- POWER ------------ Ion Engine Light Ion Engine > --- PROPULSION ------- Light Treads Light Treads > --- UTILITY ---------- Small Storage Unit Makeshift Kinetic Plating Tower Shield > --- WEAPON ----------- EM Pulse Gun Subdweller Machine Gun > --- INVENTORY -------- High-capacity Matter Pod Subdweller Optics Targeting Computer Makeshift Light Armor Plating Subdweller Machine Gun Barrage Gun Grenade Launcher [Rating: 33] Favorites ----------- Power Ion Engine Engine Ion Engine Propulsion Light Treads Treads Light Treads Utility Small Storage Unit Device Seismic Detector Storage Small Storage Unit Protection Makeshift Kinetic Plating Weapon Subdweller Machine Gun Energy Gun EM Pulse Gun Ballistic Gun Subdweller Machine Gun Build | -11 -10 -10 -10 ------- Run | Yrd Mat Min Sub Slots Evolved . | . . . . Power . | . . . . Propulsion . | . . . . Utility . | . . . . Weapon . | . . . . Parts Attached 18 | 7 1 . 10 Power 3 | 1 . . 2 Engine 3 | 1 . . 2 Core . | . . . . Reactor . | . . . . Propulsion 2 | 2 . . . Treads 2 | 2 . . . Leg . | . . . . Wheel . | . . . . Hover . | . . . . Flight . | . . . . Utility 5 | 2 1 . 2 Device 2 | 1 1 . . Storage 1 | 1 . . . Processor . | . . . . Hackware . | . . . . Protection 2 | . . . 2 Artifact . | . . . . Weapon 8 | 2 . . 6 Energy Gun 3 | 1 . . 2 Energy Cannon . | . . . . Ballistic Gun 5 | 1 . . 4 Ballistic Cannon . | . . . . Launcher . | . . . . Special Weapon . | . . . . Impact Weapon . | . . . . Slashing Weapon . | . . . . Piercing Weapon . | . . . . Special Melee Weapon . | . . . . Unidentified Prototypes . | . . . . Parts Lost 4 | . . . 4 Power . | . . . . Propulsion 1 | . . . 1 Utility 2 | . . . 2 Weapon 1 | . . . 1 Highest Loss Streak 2 | . . . 2 To Critical Strikes 1 | . . . 1 Average Backups 6 | 4 7 8 7 Power . | 1 1 1 . Propulsion 1 | 1 2 2 1 Utility 2 | . 1 2 3 Weapon 2 | . 2 3 2 Tool/Special . | . . . . Unused Backups 11 | . . . 11 Power . | . . . . Propulsion 5 | . . . 5 Utility 5 | . . . 5 Weapon 1 | . . . 1 Tool/Special . | . . . . Average Slot Usage (%) 84 | . 100 100 81 Engine 12 | . 14 14 12 Treads 22 | . 28 28 21 Device 4 | . 14 14 2 Storage 11 | . 14 14 10 Protection 9 | . . . 11 Energy Gun 9 | . 14 14 8 Ballistic Gun 13 | . 14 14 13 Peak Build Rating 33 | 7 7 7 33 Average Rating 16 | 5 7 7 20 On Entrance 5 | . 7 7 7 Avg Prop Armor Cover (%) . | . . . . Naked Turns . | . . . . Heaviest Build 64 | 14 14 14 64 Greatest Support 40 | 40 40 40 40 Greatest Overweight (x) 1 | . . . 1 Average Overweight (x) . | . . . . Largest Inventory Capacity 8 | 8 8 8 8 Average Capacity 7 | 7 8 8 7 Most Carried 8 | 6 8 8 8 Average Carried 6 | 4 7 8 7 Final Capacity 8 | 8 8 8 8 Final Carried 8 | 5 8 8 6 Class Distribution -------------------- 100% | Mutant Dominant Class ---------------- Mutant | -10/Materials Mutant | -10/Mines Mutant | -10/Subcaves Resources | -11 -10 -10 -10 ----------- Run | Yrd Mat Min Sub Matter Collected 720 | 295 . . 425 Remotely . | . . . . Salvage Created 521 | 199 . . 322 Parts 32 | 8 . . 24 Haulers Intercepted . | . . . . Recyclers Shooed . | . . . . Parts Field Recycled . | . . . . Retrieved Matter . | . . . . Parts Self-Destructed 12 | . . . 12 Prevented 2 | . . . 2 Parts Restored . | . . . . Kills | -11 -10 -10 -10 ------- Run | Yrd Mat Min Sub Combat Hostiles Destroyed 9 | . . . 9 Guns 8 | . . . 8 AOE 1 | . . . 1 Classes Destroyed 5 | 2 . . 3 Tunneler 6 | 6 . . . Recycler 1 | 1 . . . Swarmer 1 | . . . 1 Sentry 1 | . . . 1 Subdweller 7 | . . . 7 Best Kill Streak 2 | 2 . . 2 Combat Bots Only 2 | . . . 2 Max Kills in Single Turn 1 | 1 . . 1 Gunslinging . | . . . . Exploded 1 | . . . 1 Melee . | . . . . Uniques/NPCs Destroyed . | . . . . Combat | -11 -10 -10 -10 -------- Run | Yrd Mat Min Sub Hostile Shots Fired 90 | . . 4 86 Missed 23 | . . 1 22 Hits 67 | . . 3 64 Projectile 67 | . . 3 64 Critical Strikes 2 | . . . 2 Part Disruptions 1 | . . 1 . Damage Taken 1261 | . 67 35 1159 Core 257 | . 19 . 238 Absorbed by Shields . | . . . . Ignored by Resistances 119 | . . . 119 Core Remaining (%) 100 | 100 . . . Volleys Fired 97 | 25 . . 72 Largest 2 | 2 . . 2 Hottest 80 | 70 . . 80 Shots Fired 187 | 50 . . 137 Gun 187 | 50 . . 137 Cannon . | . . . . Launcher . | . . . . Special . | . . . . Kinetic 118 | 25 . . 93 Thermal 25 | 25 . . . Explosive . | . . . . Electromagnetic 44 | . . . 44 Robot Hit Streak 19 | 10 . . 19 Robot Miss Streak 6 | 2 . . 6 Penetration Max . | . . . . Secondary Targets 1 | . . . 1 Max Gunslinging Chain 1 | . . . 1 Shots Hit Robots 105 | 31 . . 74 Core Hits 30 | 13 . . 17 Critical Kills 2 | 2 . . . Critical Parts Destroyed 1 | . . . 1 Critical Strikes 7 | 5 . . 2 Burn 3 | 3 . . . Destroy 3 | 2 . . 1 Corrupt 1 | . . . 1 Melee Attacks . | . . . . Impact . | . . . . Slashing . | . . . . Piercing . | . . . . Sneak Attacks . | . . . . Combat Hostiles . | . . . . Follow-up Attacks . | . . . . Damage Inflicted 1438 | 320 . . 1118 Guns 1295 | 320 . . 975 Cannons . | . . . . Explosions 143 | . . . 143 Melee . | . . . . Ramming . | . . . . Kinetic 913 | 134 . . 779 Thermal 329 | 186 . . 143 Explosive . | . . . . Electromagnetic 196 | . . . 196 Impact . | . . . . Slashing . | . . . . Piercing . | . . . . Highest Corruption 1 | . 1 1 1 Average Corruption 1 | . 1 1 1 Corruption Purged . | . . . . Corruption Blocked . | . . . . Effects 11 | . 1 . 10 Message Errors 3 | . . . 3 Matter Fused 5 | . 1 . 4 Energy Discharges 1 | . . . 1 Misfires 1 | . . . 1 Alerts 1 | . . . 1 Overload Shots . | . . . . Overflow Damage . | . . . . Projectiles . | . . . . Explosions . | . . . . Melee . | . . . . Knockbacks . | . . . . Impact . | . . . . Kinetic . | . . . . Secondary . | . . . . Self-Inflicted Damage . | . . . . Shots . | . . . . Rammed . | . . . . Targets Rammed . | . . . . Kicked . | . . . . Crushed . | . . . . Highest Temperature 50 | 50 . . . Average Temperature 19 | 19 . . . Received Heat Transfer 93 | . . 60 33 Siege Activations . | . . . . Martial Activations . | . . . . Shielding Activations . | . . . . Robots Disrupted 1 | . . . 1 Combat Hostiles 1 | . . . 1 Robots Corrupted . | . . . . Combat Hostiles . | . . . . Parts Fried . | . . . . Impact Corruptions . | . . . . Robots Melted . | . . . . Combat Hostiles . | . . . . Parts Melted 1 | 1 . . . Heat Transferred 977 | 777 . . 200 Parts Sabotaged . | . . . . Parts Stolen . | . . . . Parts Stripped . | . . . . Power Chain Reactions 2 | . . . 2 Alert | -11 -10 -10 -10 ------- Run | Yrd Mat Min Sub Maximum Alert Level . | . . . . Low Security (%) 100 | 100 100 100 . Level 1 . | . . . . Level 2 . | . . . . Level 3 . | . . . . Level 4 . | . . . . Level 5 . | . . . . High Security . | . . . . Max Security . | . . . . Peak Influence 10 | 5 10 . . Initial 3 | . 3 . . Average . | 1 . . . Influence Increases 85 | 35 10 . 40 Destroy 0b10 Robot/C 40 | . . . 40 Destroy 0b10 Robot/NC 35 | 35 . . . Successful Hack 10 | . 10 . . Influence Decreases 85 | 30 15 . 40 Entered New Map 2 | . 2 . . Time Decay 83 | 30 13 . 40 Squads Dispatched . | . . . . Investigation . | . . . . Extermination . | . . . . Reinforcement . | . . . . Assault . | . . . . Garrison . | . . . . Intercept . | . . . . Searches Triggered . | . . . . Construction Impeded . | . . . . Haulers Reinforced . | . . . . Active Scanning Responses . | . . . . Cargo Convoy Interrupts . | . . . . Stealth | -11 -10 -10 -10 --------- Run | Yrd Mat Min Sub Distress Signals . | . . . . Communications Jammed . | . . . . Distress Signals . | . . . . Times Spotted 13 | . . 2 11 Peak Tracking Total 2 | . . 2 2 Tactical Retreats . | . . . . Traps | -11 -10 -10 -10 ------- Run | Yrd Mat Min Sub Traps Triggered 1 | . 1 . . Indirectly . | . . . . Trap Hack Attempts . | . . . . Triggered . | . . . . Disarmed . | . . . . Reprogrammed . | . . . . Reused . | . . . . Traps Extracted . | . . . . Installed . | . . . . Triggered . | . . . . Machines | -11 -10 -10 -10 ---------- Run | Yrd Mat Min Sub Machines Disabled 1 | . . . 1 Max in Single Turn 1 | . . . 1 Machines Repaired . | . . . . Machines Dismantled . | . . . . Machines Sabotaged . | . . . . Overloaded Fab Kills . | . . . . Hacking | -11 -10 -10 -10 --------- Run | Yrd Mat Min Sub Machines Accessed 3 | . 1 . 2 Terminals 1 | . 1 . . Fabricators . | . . . . Repair Stations . | . . . . Recycling Units . | . . . . Scanalyzers . | . . . . Garrison Access . | . . . . Total Hacks 7 | . 3 . 4 Successful 6 | . 2 . 4 Failed 1 | . 1 . . Catastrophic . | . . . . Database Lockouts . | . . . . Manual 3 | . 3 . . Terminals 3 | . 3 . . Fabricators . | . . . . Repair Stations . | . . . . Recycling Units . | . . . . Scanalyzers . | . . . . Garrison Access . | . . . . Terminal Hacks 5 | . 1 . 4 Record 3 | . . . 3 Zone Layout 1 | . 1 . . Proto ID Catalog 1 | . . . 1 Fabricator Hacks . | . . . . Repair Station Hacks . | . . . . Recycling Unit Hacks . | . . . . Scanalyzer . | . . . . Garrison Access Hacks . | . . . . Unauthorized Hacks 1 | . 1 . . Terminals 1 | . 1 . . Skim 1 | . 1 . . Fabricators . | . . . . Repair Stations . | . . . . Recycling Units . | . . . . Scanalyzers . | . . . . Garrison Access . | . . . . Data Cores Recovered . | . . . . Used . | . . . . Hacking Detections 1 | . 1 . . Full Trace Events . | . . . . Feedback Events . | . . . . Feedback Blocked . | . . . . Robot Schematics Acquired . | . . . . Robots Built . | . . . . Authchips . | . . . . Time . | . . . . Total Robot Build Rating . | . . . . Part Schematics Acquired . | . . . . Parts Built . | . . . . Authchips . | . . . . Time . | . . . . Total Part Build Rating . | . . . . Part Studies Acquired . | . . . . Parts Repaired . | . . . . Time . | . . . . Parts Recycled . | . . . . Recycled Matter . | . . . . Retrieved Matter . | . . . . Retrieved Components . | . . . . Parts Scanalyzed . | . . . . Part Schematics Acquired . | . . . . Parts Damaged . | . . . . Bothacking | -11 -10 -10 -10 ------------ Run | Yrd Mat Min Sub Used RIF Installer . | . . . . Robots Hacked . | . . . . Non-combat . | . . . . Combat . | . . . . Robot Hacks Applied . | . . . . Relay Couplers Released . | . . . . Fabnet Peak Effective % . | . . . . Robots Rewired . | . . . . Allies Hacked . | . . . . Hacks Repelled . | . . . . Allies | -11 -10 -10 -10 -------- Run | Yrd Mat Min Sub Total Allies . | . . . . Largest Group . | . . . . Highest-Rated Group . | . . . . Highest-Rated Ally . | . . . . Total Orders . | . . . . Ally Attacks . | . . . . Total Damage . | . . . . Kills . | . . . . Allies Corrupted . | . . . . Allies Melted . | . . . . Intel | -11 -10 -10 -10 ------- Run | Yrd Mat Min Sub Active Infowar (turns) 513 | 65 179 80 189 Seismic 513 | 65 179 80 189 Robot Analysis Total . | . . . . Derelict Logs Recovered . | . . . . Drone Launches . | . . . . Drone Recoveries . | . . . . Exploration | -11 -10 -10 -10 ------------- Run | Yrd Mat Min Sub Turns Passed 1807 | 278 179 80 1270 Spaces Moved 805 | 126 95 51 533 Core 10 | 10 . . . Treads 795 | 116 95 51 533 Legs . | . . . . Wheels . | . . . . Hover . | . . . . Flight . | . . . . Fastest Speed 50 | 50 160 160 160 Average Speed 179 | 151 160 160 191 Slowest Speed 240 | 160 160 160 240 Overloaded Moves . | . . . . Propulsion Burnouts . | . . . . Robots Hopped . | . . . . Potential Cave-ins . | . . . . Cave-ins Triggered . | . . . . Exploration Rate (%) 18 | 5 16 18 33 Regions Visited 3 Branch Regions 2 Pre-discovered Areas . | . . . . Known Exits Taken . | . . . . Unknown Exits Taken 3 | 1 1 1 . Scrap Searched 9 | . . . 9 Spaces Dug 4 | . . . 4 Terrain Destroyed 13 | . . . 13 Melee . | . . . . Projectile 7 | . . . 7 AOE 6 | . . . 6 Terrain Rammed . | . . . . Walls Destroyed . | . . . . Machines Disabled . | . . . . Actions | -11 -10 -10 -10 --------- Run | Yrd Mat Min Sub Total 991 | 169 122 50 650 Wait 28 | . 22 . 6 Move 802 | 125 94 50 533 Hop . | . . . . Pick Up 28 | 12 4 . 12 Fast Attach 3 | . . . 3 Attach 10 | 7 . . 3 Detach . | . . . . Swap 8 | . 1 . 7 Drop 15 | . 1 . 14 Fire 97 | 25 . . 72 Melee . | . . . . Ram . | . . . . Kick . | . . . . Crush . | . . . . Escape Stasis . | . . . . Rewire . | . . . . Trap . | . . . . Miscellaneous . | . . . . Route ------- -11/Scrapyard -10/Materials -10/Mines -10/Subcaves (discovered 2 exits: [*Mat] / Rec) History --------- Turn | Location | Event 9 | -11/Scrapyard | Discovered new exit (range 15) 279 | -11/Scrapyard | Entered Materials 318 | -10/Materials | Build established: Mutant 351 | -10/Materials | Discovered new exit (range 16) 458 | -10/Materials | Entered Mines 501 | -10/Mines | Assembled infested the area 530 | -10/Mines | Discovered new exit (range 6) 538 | -10/Mines | Entered Subcaves 611 | -10/Subcaves | A swath of the cavern ceiling suddenly collapsed 703 | -10/Subcaves | Visited 4L-MR0's lab 728 | -10/Subcaves | Found Tower Shield 729 | -10/Subcaves | Attached Tower Shield, gained temporary slots: Power, Propulsion x2, Utility x2, Weapon x2 898 | -10/Subcaves | Visited Clippyterm 905 | -10/Subcaves | Identified exit to Recycling 1338 | -10/Subcaves | Ambushed by Subdwellers from Twisted Machinery 1440 | -10/Subcaves | Shifting Twisted Machinery released Sub. Power Source 1447 | -10/Subcaves | Discovered new exit (range 7) 1485 | -10/Subcaves | Disturbed a concealed Subdweller 1541 | -10/Subcaves | Shifting Twisted Machinery released Flamer 1791 | -10/Subcaves | Core integrity fell below 50% 1805 | -10/Subcaves | Core integrity fell below 20% 1808 | -10/Subcaves | Destroyed by 3K-DOV(R) with Subdweller Machine Gun Last Messages --------------- 01494_ Found Barrage Gun. 01502_ Dropped Sub. Optics. 01503_ Acquired Sub. Monowheel. 01507_ Dropped Sub. Optics. 01508_ Acquired Sub. Monowheel. Flamer falls loose from the Twisted Machinery. 01551_ A8IEBEP&6HZEMNV&UK3Y18TZVIW8, 01604_ Sub. Machine Gun shoots sparks and powers down. 01618_ Dropped Broken Sub. Machine Gun. 01631_ T9-O21(u) tweaks Twisted Machinery. 01677_ Sub. Machine Gun shoots sparks and powers down. 01681_ Dropped Broken Sub. Machine Gun. 01689_ System corrupted: Matter fused (-8). 01761_ T9-O21(u) builds Twisted Machinery. 01791_ Critical hit (Destroy). 01791_ Lgt. Treads destroyed. 01796_ Mak. Kinetic Plating destroyed. 01796_ BP-397(R) suffers critical hit (Destroy). 01796_ Destroyed Sub. Monowheel. 01802_ BP-397(R) destroyed. Map ----- +----------------------------------------------------+ | ?????????# " ## ## """ """ #??????????????? | | ?????????# ######## ""|""" ####???????????? | | ?????????# #???# ## "" #???????????? | | ?????????# ## #???# " """" ##???????????? | | ????????? ?# #???# "" " "" ##???????????? | | ????????## ?# #???## " "" "" #???????????? | | ?????????# ?? ????# """"## " #???????????? | | ????????? "?? #????##"""#### """" #???????????? | | ?????????#??? ?????#####??##""" " #???????????? | | ????????????? #?????????????# "" ####???????????? | | ?????????????"#?????????????# "" "#?????????????? | | ????????????????????????????###" ##?????????????? | | ??????????????????????????????## #?????????????? | | ????????????????????????????### ##????????????? | | ???????????????????????????## # #????????????? | | ???????????????????????????# [ ##???????????? | | ???????????????????????????## # # #???????????? | | ??????????????????"#????????## ## ##???????????? | | ???????????????"""""#???????## #???????????? | | ???????????? "#"""" ??????## #???????????? | | ??????????? """""?######"" #???????????? | | ????????????? " "## # " """ ##???????????? | | ????????????????# ""&R* "" ""## ##????????????? | | ?????????????????# "" &%& "" #####?????????????? | | ?????????????????##"## # "" ###???????????????? | | ?????????????????????####@ """" ##??????????????? | | ????????????????????????##""u""" #??????????????? | | ?????????????????????????##"""######?????????????? | | ??????????????????????????#"" "#"#"##????????????? | | ??????????????????????????## ###??????????? | | ???????????????????????????## ## #??????????? | | ????????????????????????????#### # #??????????? | | ???????????????????????????????### ##??????????? | | ?????????????????????????????????#####???????????? | | ?????????????????????????????????????????????????? | | ?????????????????????????????????????????????????? | | ?????????????????????????????????????????????????? | | ?????????????????????????????????????????????????? | | ?????????????????????????????????????????????????? | | ?????????????????????????????????????????????????? | | ?????????????????????????????????????????????????? | | ?????????????????????????????????????????????????? | | ?????????????????????????????????????????????????? | | ?????????????????????????????????????????????????? | | ?????????????????????????????????????????????????? | | ?????????????????????????????????????????????????? | | ?????????????????????????????????????????????????? | | ?????????????????????????????????????????????????? | | ?????????????????????????????????????????????????? | | ?????????????????????????????????????????????????? | +----------------------------------------------------+ Best States ------------- Heat Dissipation 25 Energy Generation 15 Energy Capacity 275 Matter Stores 300 Matter Capacity 300 Sight Range 16 Terrain Scan Density 10 Armor Coverage 2100 Resistance: KI 10 Evasion (%) 40 Recoil Reduction 2 Item Schematics ----------------- None Robot Schematics ------------------ None Fabricated ------------ Nothing Repaired ---------- Nothing Studied --------- None Alien Tech Used ----------------- None Achievements -------------- None Challenges ------------ None Game ------ Seed WeaponLobotomyBox Manual? 0 Play Time 00:12:57 Cumulative 447.5 hours Start 2025.10.30 @ 07:49:59 End 2025.10.30 @ 08:08:23 Sessions 1 Manual Loads 0 Difficulty Rogue Special Mode None Game No. 569 Rogue 569 Adventurer 0 Explorer 0 Win Type - Total 14 Types 6/0/2/2/1/0/2/1/0/0 Lore% 90 Gallery% 84 Achievement% 61 Wizard Run 0 Options --------- Layout 0 ASCII 0 Keyboard 0 Movement Mouse Keybinds 0 Fullscreen 1 Font 24/Terminus Map View 76x50 Zoom Use 0% Tactical HUD 1 Map Filters NONE Filters NONE Steam 1 RUN: 36f9d694-cd52-422a-add2-19da08b1d7d5